bitfinex/quotes_ETHUSD_20241122
["timestamp","ask_amount","ask_price","bid_price","bid_amount"]
[1732254850339,0.8286,3379.8,3379.3,0.2947]
[1732254852443,0.8286,3379.8,3378.9,0.2947]
[1732254852676,0.8286,3379.8,3379.3,0.2947]
[1732254853142,0.7657,3379.6,3379.3,0.2947]
[1732254853691,0.55,3379.5,3379.1,0.2947]
[1732254857049,4.26700105,3379.3,3379.1,0.2947]
[1732254857255,1.3157,3379.2,3379.1,0.2947]
[1732254857751,0.55,3379.1,3378.9,0.2947]
[1732254857961,1.05327011,3379.1,3378.9,0.2947]
[1732254858158,0.7657,3379.0,3378.9,0.2947]
[1732254858373,1.3157,3379.0,3378.9,0.2947]
[1732254858899,5.03270105,3379.0,3378.9,0.2947]
[1732254859915,5.03270105,3379.0,3378.8,0.1497047]
[1732254860091,5.03270105,3379.0,3378.9,0.2947]
[1732254861613,1.3157,3379.0,3378.9,0.2947]
[1732254861764,0.7657,3379.0,3378.9,0.2947]
[1732254862168,0.7657,3379.5,3378.9,0.2947]
[1732254863291,1.21397011,3379.5,3378.9,0.2947]
[1732254864509,0.55,3379.4,3378.9,0.2947]
[1732254865201,1.21397011,3379.5,3378.9,0.2947]
[1732254865202,0.55,3379.2,3378.9,0.2947]
[1732254865408,1.21397011,3379.5,3378.9,0.2947]
[1732254865612,0.55,3379.3,3378.9,0.2947]
[1732254866613,4.26700105,3379.3,3378.9,0.2947]
[1732254870392,4.26700105,3379.3,3377.5,0.27129964]
[1732254870393,0.55,3378.4,3375.7,0.7641]
[1732254870693,0.55,3378.4,3374.1,12.74989341]
[1732254870694,1.3305,3377.5,3376.0,0.7641]
[1732254871096,0.55,3377.5,3376.0,0.7641]
[1732254871298,0.55,3377.7,3376.1,0.2947]
[1732254871511,0.55,3377.7,3376.3,0.2947]
[1732254871725,3.71700105,3377.6,3376.3,0.2947]
[1732254871890,0.55,3377.5,3376.3,0.2947]
[1732254872078,0.55,3377.5,3377.0,0.2947]
[1732254872279,0.55,3377.3,3377.0,0.2947]
[1732254872786,3.71700105,3378.0,3377.0,0.70058]
[1732254872787,0.27484222,3377.2,3377.0,0.70058]
[1732254873017,0.27484222,3377.1,3377.0,0.70058]
[1732254873419,0.27484222,3377.7,3377.0,0.2947]
[1732254873620,0.55,3377.6,3377.0,0.2947]
[1732254873781,0.27484222,3377.5,3377.0,0.2947]
[1732254875684,0.27460856,3377.4,3377.0,0.2947]
[1732254875885,0.27460856,3377.8,3377.0,0.70058]
[1732254876110,0.27460856,3377.7,3377.0,0.2947]
[1732254876308,0.27460856,3377.6,3377.0,0.2947]
[1732254876636,0.27460856,3377.5,3377.2,0.2947]
[1732254876922,0.27456418,3377.4,3377.2,0.2947]
[1732254877221,0.27456418,3377.3,3377.2,0.2947]
[1732254877416,0.27456418,3377.8,3377.0,0.2947]
[1732254877587,3.71700105,3377.6,3377.0,0.2947]
[1732254877783,0.27456418,3377.5,3377.0,0.2947]
[1732254878099,0.27456418,3377.5,3377.4,1.0588]
[1732254878421,3.71700105,3378.1,3377.4,1.0588]
[1732254878633,0.27456116,3378.0,3377.4,1.0588]
[1732254879188,0.27455379,3377.9,3377.4,1.0588]
[1732254879515,0.27455379,3377.8,3377.4,1.0588]
[1732254879816,0.27455379,3377.7,3377.4,1.0588]
[1732254880023,0.27455379,3377.6,3377.4,1.0588]
[1732254880220,3.71700105,3378.1,3377.4,1.0588]
[1732254880422,0.27454552,3378.0,3377.4,1.0588]
[1732254880788,0.27454552,3378.0,3376.1,0.2494306]
[1732254880789,0.7978,3379.2,3377.8,0.2947]
[1732254880989,3.71700105,3379.0,3378.0,1.0588]
[1732254881198,0.45148011,3378.9,3378.0,1.0588]
[1732254881427,3.71700105,3379.0,3378.0,1.0588]
[1732254881598,3.71700105,3379.0,3378.0,4.0588]
[1732254882003,3.71700105,3379.0,3378.0,1.0588]
[1732254882218,0.55,3378.9,3378.0,4.0588]
[1732254882408,0.55,3378.9,3378.2,0.2947]
[1732254883404,0.55,3379.2,3378.3,0.2947]
[1732254883730,0.8012589,3379.2,3378.3,0.2947]
[1732254884431,0.8012589,3379.2,3378.1,0.2947]
[1732254887330,0.8012589,3379.2,3378.3,0.2947]
[1732254887536,0.55,3379.2,3378.3,0.2947]
[1732254892953,0.27526699,3379.1,3378.3,0.2947]
[1732254893354,0.27526699,3379.1,3378.4,0.758]
[1732254894071,0.55,3379.2,3378.4,0.758]
[1732254894232,0.27526377,3379.1,3378.4,0.758]
[1732254894437,0.27526377,3379.0,3378.5,0.2947]
[1732254894637,0.27526377,3378.9,3378.5,0.2947]
[1732254895011,0.27526377,3378.8,3378.5,0.2947]
[1732254895164,0.27526377,3379.4,3378.5,0.2947]
[1732254895329,0.82526377,3379.3,3378.5,0.2947]
[1732254895525,0.27526377,3379.2,3378.5,0.2947]
[1732254895758,0.27526377,3379.1,3378.5,0.2947]
[1732254896064,0.27526377,3379.0,3378.5,0.2947]
[1732254896360,0.27526377,3378.9,3378.5,0.2947]
[1732254896658,0.27526377,3378.8,3378.5,0.2947]
[1732254896858,0.27526377,3379.2,3378.5,0.2947]
[1732254897168,1.17584201,3379.3,3378.5,0.2947]
[1732254897169,0.27526377,3379.1,3378.5,0.2947]
[1732254897532,0.27526377,3379.0,3378.5,0.2947]
[1732254897732,0.27526377,3378.9,3378.5,0.2947]
[1732254898051,0.27526377,3378.8,3378.7,0.2947]
[1732254898367,5.70831005,3379.9,3378.7,0.2947]
[1732254898368,0.55,3379.7,3378.7,0.2947]
[1732254898554,0.55,3379.5,3378.7,0.2947]
[1732254898730,0.27526377,3379.4,3378.7,0.2947]
[1732254898937,0.27526377,3379.3,3378.7,0.2947]
[1732254899148,0.27526377,3379.2,3378.7,0.2947]
[1732254899353,0.27526377,3379.1,3378.7,0.2947]
[1732254899637,0.27526377,3379.0,3378.7,0.2947]
[1732254899979,0.53516648,3379.6,3378.8,0.2947]
[1732254899980,0.27526377,3378.9,3378.8,0.2947]
[1732254900335,0.27526377,3379.8,3378.8,0.2947]
[1732254900533,0.10989,3380.0,3378.8,0.2947]
[1732254900534,3.71700105,3379.5,3378.8,0.2947]
[1732254900775,1.48389025,3379.4,3378.8,0.2947]
[1732254900941,0.27526377,3379.3,3378.8,0.2947]
[1732254902460,0.27526377,3379.2,3378.8,0.2947]
[1732254902651,0.27526377,3379.1,3378.8,0.2947]
[1732254902832,0.27526377,3379.0,3378.8,0.2947]
[1732254903031,0.27526377,3378.9,3378.8,0.2947]
[1732254903477,0.27526377,3379.2,3378.8,0.2947]
[1732254903798,0.49256275,3379.3,3378.8,0.2947]
[1732254903981,0.27544507,3379.2,3378.8,0.2947]
[1732254904272,0.27544507,3379.1,3378.8,0.2947]
[1732254904471,0.27544507,3379.0,3378.8,0.2947]
[1732254904772,0.27544507,3378.9,3378.8,0.2947]
[1732254905642,0.8094,3379.6,3378.8,0.2947]
[1732254905643,0.27544507,3379.5,3378.8,0.2947]
[1732254905855,0.8094,3379.6,3378.8,0.2947]
[1732254906069,0.27553892,3379.5,3378.8,0.2947]
[1732254906272,0.8094,3379.3,3378.8,0.2947]
[1732254906472,0.27553892,3379.2,3378.8,0.2947]
[1732254906789,0.27553892,3379.1,3378.8,0.285645]
[1732254907084,0.27567702,3379.0,3378.8,0.285645]
[1732254907389,0.27567702,3378.9,3378.8,0.285645]
[1732254907555,0.27567702,3378.9,3378.5,0.27659]
[1732254907897,0.27567702,3378.8,3378.7,1.03459]
[1732254908075,0.27567702,3379.8,3378.7,0.27659]
[1732254908389,0.27567702,3379.7,3378.7,0.27659]
[1732254908588,0.27567702,3379.6,3378.7,0.27659]
[1732254908788,0.27567702,3379.5,3379.1,0.27659]
[1732254908953,0.10989,3380.0,3379.1,0.27659]
[1732254908954,0.27567702,3379.4,3379.1,0.27659]
[1732254909153,0.27567702,3379.3,3379.1,0.27659]
[1732254909353,0.10989,3380.0,3379.1,0.27659]
[1732254909354,0.27567702,3379.2,3379.1,0.27659]
[1732254914173,0.27614614,3379.2,3379.1,0.27659]
[1732254914481,0.27613951,3379.2,3378.7,0.27659]
[1732254914682,0.27613951,3379.1,3378.7,0.27659]
[1732254914886,0.8179,3379.8,3378.7,0.27659]
[1732254914887,0.27613951,3379.0,3378.7,0.27659]
[1732254915106,0.27613951,3378.9,3378.7,0.27659]
[1732254915302,0.27613951,3378.8,3378.7,0.27659]
[1732254916806,0.27613951,3379.2,3378.7,0.27659]
[1732254917012,0.27613951,3379.1,3378.7,0.27659]
[1732254917200,0.27613951,3379.0,3378.7,0.27659]
[1732254917375,0.8179,3379.3,3378.7,0.27659]
[1732254917376,0.27613951,3378.9,3378.7,0.27659]
[1732254917572,0.8179,3379.3,3378.7,0.27659]
[1732254917914,0.27623812,3379.2,3378.7,0.27659]
[1732254918217,0.8179,3379.3,3378.7,0.27659]
[1732254918218,0.27623812,3379.1,3378.7,0.27659]
[1732254918383,0.27623812,3379.0,3378.7,0.27659]
[1732254918586,0.27623812,3378.9,3378.7,0.27659]
[1732254918786,0.27623812,3378.8,3378.7,0.27659]
[1732254919217,0.27623812,3378.8,3374.4,7.29208101]
[1732254919218,0.55,3378.7,3378.0,0.2947]
[1732254919388,4.81113917,3378.6,3378.0,0.2947]
[1732254919580,0.27623812,3378.5,3378.0,0.2947]
[1732254919781,0.27623812,3378.4,3378.0,0.2947]
[1732254920078,0.27623812,3378.3,3378.0,0.2947]
[1732254920277,0.50849011,3378.5,3378.0,0.2947]
[1732254920278,0.27623812,3378.2,3378.0,0.2947]
[1732254920484,0.50849011,3378.5,3378.0,0.2947]
[1732254920485,0.27623812,3378.1,3378.0,0.2947]
[1732254921087,0.27623812,3378.1,3377.3,1.0675]
[1732254921088,1.09413812,3378.1,3377.3,1.0675]
[1732254921293,0.27623812,3378.0,3377.3,1.0675]
[1732254921621,0.27623812,3377.9,3377.3,1.0675]
[1732254921915,0.27623812,3377.8,3377.3,1.0675]
[1732254922115,0.27623812,3377.7,3377.3,1.0675]
[1732254922486,0.27623812,3377.6,3377.4,0.2947]
[1732254922687,0.27623812,3377.5,3377.4,0.2947]
[1732254923296,0.27623812,3377.9,3377.5,1.0675]
[1732254923520,0.27556028,3377.8,3377.5,1.0675]
[1732254923683,0.27556028,3377.7,3377.5,1.0675]
[1732254923889,0.27556028,3377.6,3377.5,1.0675]
[1732254924421,0.27556028,3377.6,3377.1,0.2947]
[1732254924729,0.27543454,3377.5,3377.1,0.2947]
[1732254924940,0.27543454,3377.4,3377.1,0.2947]
[1732254925091,0.27543454,3377.3,3377.1,0.2947]
[1732254925288,0.27543454,3377.2,3377.1,0.2947]
[1732254925486,0.27543454,3377.9,3377.1,0.2947]
[1732254925795,0.27543454,3377.8,3377.1,0.2947]
[1732254925996,0.8179,3377.7,3377.0,0.7728]
[1732254926200,0.27543454,3377.6,3376.7,0.7728]
[1732254926396,0.43740625,3377.6,3376.7,0.7728]
[1732254926621,0.7785,3377.4,3376.4,0.7683]
[1732254926921,0.55,3377.1,3375.5,0.7683]
[1732254927136,0.55,3377.1,3375.4,0.47203078]
[1732254927137,0.27543454,3377.0,3375.7,0.2947]
[1732254927299,0.7785,3376.8,3375.7,0.2947]
[1732254927625,0.82543454,3376.7,3375.7,0.2947]
[1732254927794,0.55,3376.7,3375.7,0.2947]
[1732254927998,0.27487574,3376.6,3375.7,0.2947]
[1732254928222,0.27487574,3376.7,3375.7,0.2947]
[1732254928397,0.27487574,3376.6,3375.7,0.2947]
[1732254928583,0.27487574,3376.5,3375.7,0.2947]
[1732254928794,0.27463941,3376.4,3375.7,0.71597047]
[1732254928992,0.7785,3376.8,3375.7,0.71597047]
[1732254929297,0.27463194,3376.7,3375.8,0.44842705]
[1732254929832,0.27463194,3376.7,3375.6,0.7683]
[1732254932043,0.7785,3376.8,3375.6,0.7683]
[1732254932044,0.27420987,3376.6,3375.6,0.7683]
[1732254932337,0.7785,3376.8,3375.6,0.7683]
[1732254932637,0.14913408,3377.3,3375.6,0.7683]
[1732254932638,0.27410692,3376.7,3375.6,0.7683]
[1732254932835,0.7785,3377.4,3376.1,0.7683]
[1732254933010,0.2741438,3377.3,3376.2,0.37683]
[1732254933408,0.2741438,3377.3,3376.1,0.7683]
[1732254934034,0.7785,3377.1,3376.1,0.7683]
[1732254934249,0.2741438,3377.0,3375.4,0.5016459]
[1732254934537,0.16026438,3376.9,3375.5,0.7683]
[1732254934744,0.2741438,3376.8,3375.5,0.7683]
[1732254935102,0.7785,3376.7,3375.5,0.7683]
[1732254935304,0.2741438,3376.6,3375.5,0.7683]
[1732254935504,0.7785,3376.7,3375.6,0.39180047]
[1732254935841,0.7785,3376.7,3375.5,0.7683]
[1732254935997,0.27396255,3376.6,3375.5,0.7683]
[1732254936502,0.7785,3376.7,3375.5,0.7683]
[1732254936701,0.27390638,3376.6,3375.5,0.7683]
[1732254938199,0.7785,3376.5,3375.5,0.7683]
[1732254939348,0.55,3376.4,3375.6,0.2947]
[1732254939633,0.7785,3376.4,3375.6,0.2947]
[1732254939833,3.71700105,3376.6,3375.6,0.2947]
[1732254939834,0.7785,3376.2,3375.6,0.2947]
[1732254940074,0.2736959,3376.1,3375.6,0.2947]
[1732254940342,0.7785,3376.0,3375.5,0.2947]
[1732254940504,0.4769197,3375.9,3375.5,0.2947]
[1732254941344,1.3285,3376.3,3375.5,0.2947]
[1732254941548,0.55,3376.1,3375.5,0.2947]
[1732254941708,1.3285,3376.3,3375.5,0.2947]
[1732254941910,0.55,3376.1,3375.5,0.2947]
[1732254942949,0.50455011,3376.2,3375.5,0.2947]
[1732254943239,0.50455011,3376.2,3375.7,0.2947]
[1732254943642,0.27384269,3376.1,3375.4,0.9237047]
[1732254943832,0.15568928,3376.0,3375.5,0.2947]
[1732254944035,0.27384269,3375.9,3375.5,0.2947]
[1732254944437,0.15568928,3376.0,3375.5,0.2947]
[1732254944639,1.05577251,3375.9,3375.5,0.2947]
[1732254944844,0.27393226,3375.8,3375.5,0.2947]
[1732254945951,0.55,3375.7,3375.4,0.1497047]
[1732254946171,0.55,3375.8,3375.4,0.1497047]
[1732254946454,0.27396959,3375.7,3375.4,0.1497047]
[1732254946750,0.16057696,3375.6,3375.4,0.1497047]
[1732254946946,0.27414949,3375.7,3375.4,0.1497047]
[1732254947246,0.27419721,3375.6,3375.4,0.1497047]
[1732254947446,0.27419721,3375.5,3375.4,0.1497047]
[1732254948057,0.27419721,3375.7,3375.4,0.1497047]
[1732254948348,0.27439762,3375.6,3375.4,0.1497047]
[1732254948555,1.28635011,3376.2,3375.5,0.774]
[1732254948716,1.25323147,3376.1,3375.5,0.774]
[1732254948918,0.27459646,3376.0,3375.5,0.774]
[1732254949453,0.27459646,3376.0,3375.6,0.2947]
[1732254950510,4.49880105,3376.5,3375.6,0.2947]
[1732254950820,3.7785,3377.0,3375.7,0.2947]
[1732254950821,0.27486409,3376.4,3375.7,0.2947]
[1732254951015,0.27486409,3376.3,3375.7,0.2947]
[1732254951247,0.27486409,3376.2,3375.7,0.2947]
[1732254951455,0.27486409,3376.6,3375.7,0.2947]
[1732254951613,0.27486409,3376.5,3375.7,0.2947]
[1732254951966,0.27486409,3376.5,3375.5,0.2947]
[1732254952534,0.27486409,3376.5,3375.7,0.2947]
[1732254952745,0.84390346,3376.5,3375.7,0.2947]
[1732254952960,0.27486409,3376.4,3375.7,0.2947]
[1732254954412,0.7818,3376.3,3375.7,0.2947]
[1732254954615,0.27486409,3376.2,3375.7,0.2947]
[1732254956415,0.27486409,3376.2,3375.8,0.2947]
[1732254956629,0.47736651,3376.1,3375.8,0.2947]
[1732254956825,0.27573755,3376.0,3375.8,0.2947]
[1732254957242,0.27574184,3375.9,3375.8,0.2947]
[1732254957433,0.27574184,3376.0,3375.5,0.2947]
[1732254957618,0.27574184,3375.9,3375.5,0.2947]
[1732254957818,0.27574184,3375.8,3375.5,0.2947]
[1732254958052,0.27574184,3375.7,3375.5,0.2947]
[1732254958249,0.27574184,3375.6,3375.5,0.2947]
[1732254958474,0.27574184,3376.0,3375.5,0.2947]
[1732254958625,0.47736651,3376.1,3375.5,0.2947]
[1732254958626,0.27585555,3375.9,3375.5,0.2947]
[1732254958836,0.27585555,3375.8,3375.5,0.2947]
[1732254959037,0.47736651,3376.1,3375.5,0.2947]
[1732254959038,0.27585555,3375.7,3375.5,0.2947]
[1732254959344,0.27585555,3375.6,3375.5,0.2947]
[1732254959528,0.27585555,3376.0,3375.5,0.2947]
[1732254959732,0.27585555,3375.9,3375.5,0.2947]
[1732254959921,0.27585555,3375.8,3375.5,0.2947]
[1732254960121,0.27585555,3375.7,3375.5,0.2947]
[1732254960355,0.47736651,3376.1,3375.5,0.2947]
[1732254960566,0.27587895,3376.0,3375.5,0.2947]
[1732254962461,0.27598045,3375.9,3375.5,0.2947]
[1732254964141,0.27598045,3375.9,3375.7,0.2947]
[1732254964348,0.27598045,3375.8,3375.7,0.2947]
[1732254964569,0.27598045,3375.8,3375.7,1.0687]
[1732254964863,3.71700105,3377.2,3375.7,0.2947]
[1732254965020,0.7818,3376.7,3375.7,0.2947]
[1732254965218,0.27630538,3376.6,3375.7,0.2947]
[1732254965422,0.27630538,3376.5,3375.7,0.2947]
[1732254965669,0.7818,3376.7,3375.7,0.2947]
[1732254965670,0.27630538,3376.4,3375.7,0.2947]
[1732254965963,0.27630538,3376.3,3375.7,0.2947]
[1732254966190,0.27630538,3376.2,3375.7,0.2947]
[1732254966396,0.27631375,3376.1,3375.7,0.2947]
[1732254966558,0.27631375,3376.5,3375.7,0.2947]
[1732254966749,0.27631375,3376.4,3375.7,0.2947]
[1732254966979,0.27631375,3376.3,3375.7,0.2947]
[1732254967164,0.49486812,3376.5,3375.7,0.2947]
[1732254967165,0.27631375,3376.2,3375.7,0.2947]
[1732254967480,0.7553,3376.0,3375.5,0.2947]
[1732254967666,0.27631375,3375.9,3375.5,0.2947]
[1732254967839,0.27631375,3375.8,3375.5,0.2947]
[1732254968040,0.27631375,3375.7,3375.5,0.2947]
[1732254968272,0.27631375,3375.9,3375.5,0.2947]
[1732254968536,0.7553,3376.0,3375.5,0.2947]
[1732254968537,0.33569804,3376.0,3375.5,0.2947]
[1732254968742,0.55,3376.6,3375.5,0.2947]
[1732254971273,0.55,3376.6,3375.7,0.2947]
[1732254971439,3.71700105,3376.7,3375.7,0.2947]
[1732254971639,1.3078,3376.9,3375.8,0.7647]
[1732254971850,0.7578,3376.9,3375.9,0.2947]
[1732254973077,4.91284119,3377.0,3375.4,0.1497047]
[1732254973078,0.7785,3377.0,3376.0,0.2947]
[1732254973275,3.71700105,3377.4,3376.0,0.2947]
[1732254973442,1.18277,3377.3,3376.0,0.2947]
[1732254973639,1.18277,3377.3,3376.1,0.02961677]
[1732254973910,3.71700105,3378.3,3376.2,0.2947]
[1732254974197,1.182538,3378.0,3376.4,0.2947]
[1732254974399,1.182538,3378.0,3376.5,0.67676197]
[1732254974900,1.182538,3378.0,3376.6,0.7647]
[1732254975063,1.182538,3378.0,3376.7,0.02961041]
[1732254975258,0.15542381,3377.9,3376.8,0.7647]
[1732254975597,1.04846211,3378.2,3376.8,0.7647]
[1732254976403,4.47480105,3378.9,3377.0,0.7647]
[1732254976704,4.47480105,3378.9,3377.2,0.7647]
[1732254976705,0.7647,3378.5,3377.2,0.7647]
[1732254977795,4.92918116,3378.8,3377.4,0.7647]
[1732254978095,4.16448116,3378.8,3377.4,0.7647]
[1732254978397,0.49222812,3378.7,3377.4,0.7647]
[1732254979808,0.7578,3379.5,3377.6,0.7647]
[1732254980009,0.44748011,3379.4,3377.7,0.40825814]
[1732254980165,0.44748011,3379.4,3377.8,0.7647]
[1732254980498,0.925088,3379.7,3378.0,0.7647]
[1732254980800,0.27436013,3379.6,3378.2,0.7647]
[1732254980985,0.27436013,3379.5,3378.3,0.7647]
[1732254981194,0.27436013,3379.4,3378.3,0.7647]
[1732254981511,0.27436013,3379.3,3378.5,0.7647]
[1732254981794,0.10989,3380.0,3378.6,0.7647]
[1732254981999,0.27414226,3379.9,3378.6,0.7647]
[1732254983792,0.27414226,3379.9,3378.7,0.02959355]
[1732254983993,0.27414226,3379.9,3378.8,0.7647]
[1732254985264,0.41010333,3379.8,3378.8,0.7647]
[1732254985469,0.27414226,3379.7,3378.8,0.7647]
[1732254986181,0.41010333,3379.8,3378.8,0.7647]
[1732254987693,0.27321662,3379.7,3378.8,0.7647]
[1732254988101,4.26700105,3379.6,3378.8,0.7647]
[1732254988305,1.54184872,3379.5,3377.8,0.7991]
[1732254988610,3.71700105,3379.2,3377.8,0.7991]
[1732254988765,3.71700105,3379.2,3378.0,0.7991]
[1732254989168,0.7736,3378.7,3378.0,0.7991]
[1732254989470,0.4490601,3378.6,3378.0,0.7991]
[1732254989969,0.7736,3379.1,3378.0,0.7991]
[1732254990173,0.2731151,3379.0,3378.0,0.7991]
[1732254992807,3.71700105,3378.8,3378.0,0.7991]
[1732254993104,0.2731151,3378.7,3378.0,0.7991]
[1732254993470,0.2731151,3378.7,3377.2,0.7991]
[1732254993471,0.55,3378.6,3377.2,0.7991]
[1732254993668,0.2731151,3378.5,3377.2,0.7991]
[1732254994416,1.00401162,3378.6,3377.2,0.7991]
[1732254994417,5.3142021,3378.4,3377.2,1.0942]
[1732254994709,0.85042242,3378.3,3377.2,1.0942]
[1732254994875,0.27360105,3378.2,3377.2,1.0942]
[1732254995279,0.57682137,3378.3,3377.2,1.0942]
[1732254995710,0.27367575,3378.2,3377.2,1.0942]
[1732254997291,0.27367575,3378.2,3377.2,0.7991]
[1732254997508,0.45674982,3378.1,3377.2,0.7991]
[1732254997693,0.27367575,3378.0,3377.2,0.7991]
[1732254998086,4.7642768,3378.0,3377.2,0.7991]
[1732254998285,0.27367575,3377.9,3377.2,0.7991]
[1732254998482,0.27409195,3377.8,3377.2,0.7991]
[1732254998725,0.27409195,3377.7,3377.2,0.7991]
[1732254999021,0.27409195,3377.6,3377.2,0.7991]
[1732254999316,0.27409195,3377.5,3377.2,0.7991]
[1732254999502,0.49396612,3377.8,3377.2,0.7991]
[1732254999706,0.27428177,3377.7,3377.2,0.7991]
[1732255001584,0.27463736,3377.6,3377.2,0.7991]
[1732255001816,0.27463736,3377.5,3377.2,0.7991]
[1732255002016,0.27463736,3377.4,3377.2,0.7991]
[1732255002192,0.27463736,3377.6,3377.2,0.7991]
[1732255002394,0.27463736,3377.5,3377.2,0.7991]
[1732255002704,0.27463736,3377.4,3377.2,0.7991]
[1732255002902,0.42109672,3377.7,3377.2,0.7991]
[1732255002903,0.27463736,3377.3,3377.2,0.7991]
[1732255003508,0.27463736,3377.6,3377.2,0.7991]
[1732255003708,0.27463736,3377.5,3377.2,0.7991]
[1732255003911,0.27463736,3377.4,3377.2,0.7991]
[1732255004110,0.27463736,3377.3,3377.2,0.7991]
[1732255004320,0.27463736,3377.3,3377.2,1.0942]
[1732255004520,4.17289897,3378.3,3377.2,1.0942]
[1732255004521,0.55,3378.2,3377.2,1.0942]
[1732255004726,0.4722899,3378.0,3377.2,1.0942]
[1732255005034,0.27484224,3377.9,3377.2,1.0942]
[1732255005892,0.27484224,3377.8,3377.3,1.0963]
[1732255006203,0.27484224,3377.7,3377.3,1.0963]
[1732255006403,0.27484224,3377.6,3377.3,1.0963]
[1732255006697,0.27484224,3377.5,3377.3,1.0963]
[1732255006932,0.45921637,3378.1,3377.3,1.0963]
[1732255006933,0.27484224,3377.4,3377.3,1.0963]
[1732255007103,0.45921637,3378.1,3377.3,1.0963]
[1732255007284,0.27477664,3378.0,3377.3,1.0963]
[1732255008619,0.45921637,3378.1,3377.3,1.0963]
[1732255008813,0.27466055,3378.0,3377.3,1.0963]
[1732255009824,3.9916616,3378.0,3377.3,1.0963]
[1732255010031,0.71974835,3377.9,3377.3,1.0963]
[1732255010335,0.27466055,3377.8,3377.3,1.0963]
[1732255013623,0.27466055,3377.8,3377.3,0.8012]
[1732255014814,0.27466055,3377.8,3377.4,0.2951]
[1732255016625,0.27466055,3377.7,3377.4,0.2951]
[1732255016926,0.27466055,3377.6,3377.4,0.2951]
[1732255017112,0.27466055,3377.5,3377.2,0.2951]
[1732255017321,3.71700105,3378.4,3377.5,0.6212]
[1732255017518,0.27544502,3378.3,3377.6,0.2751]
[1732255017818,0.27544502,3378.2,3377.6,0.2751]
[1732255017996,0.27544502,3378.1,3377.6,0.2751]
[1732255018193,0.45235011,3378.3,3377.6,0.2751]
[1732255018194,0.27544502,3378.0,3377.6,0.2751]
[1732255018391,0.27544502,3377.9,3377.6,0.2751]
[1732255018594,0.27544502,3377.8,3377.6,0.2751]
[1732255018813,0.27544502,3377.7,3377.6,0.2751]
[1732255020025,0.8065,3377.9,3376.8,0.2551]
[1732255020240,0.27570852,3377.8,3376.8,0.2551]
[1732255020398,0.27570852,3377.7,3377.0,0.2551]
[1732255020734,0.27570852,3377.6,3377.0,0.2551]
[1732255020936,0.27570852,3377.5,3377.0,0.2551]
[1732255021113,0.27570852,3377.4,3377.0,0.2551]
[1732255021315,1.25885011,3377.9,3377.0,0.2551]
[1732255021316,0.27570852,3377.3,3377.0,0.2551]
[1732255021515,0.27570852,3377.2,3377.0,0.2551]
[1732255021819,0.27570852,3377.1,3377.0,0.2551]
[1732255025770,0.27570852,3377.1,3376.5,0.2551]
[1732255026090,0.27570852,3377.0,3376.5,0.2551]
[1732255026371,3.71700105,3377.2,3376.5,0.2551]
[1732255026372,0.27570852,3376.9,3376.5,0.2551]
[1732255026579,0.27570852,3376.8,3376.5,0.2551]
[1732255026791,0.27570852,3376.7,3376.5,0.2551]
[1732255026946,3.71700105,3377.2,3376.5,0.2551]
[1732255026947,0.27570852,3376.6,3376.5,0.2551]
[1732255027150,0.27570852,3376.6,3376.0,0.2551]
[1732255027369,0.55,3377.0,3376.0,0.2551]
[1732255027370,0.27570852,3376.5,3376.0,0.2551]
[1732255027582,0.27570852,3376.4,3376.0,0.2551]
[1732255027788,0.27570852,3376.3,3376.0,0.2551]
[1732255027987,0.27570852,3376.2,3376.0,0.2551]
[1732255028286,0.27570852,3376.1,3376.0,0.2551]
[1732255028691,0.27570852,3376.6,3376.0,0.2551]
[1732255028984,0.27570852,3376.5,3376.0,0.2551]
[1732255029151,0.27570852,3376.4,3376.0,0.2551]
[1732255029358,0.27532778,3376.3,3375.9,0.8012]
[1732255029664,0.16664004,3376.6,3375.9,0.8012]
[1732255029971,0.27516725,3376.5,3375.9,0.8012]
[1732255030220,0.16664004,3376.6,3375.9,0.8012]
[1732255030221,0.27516725,3376.4,3375.9,0.8012]
[1732255030481,0.27516725,3376.3,3375.9,0.8012]
[1732255030690,0.27516725,3376.2,3375.9,0.8012]
[1732255030986,0.27516725,3376.1,3375.9,0.8012]
[1732255031191,0.27516725,3376.0,3375.9,0.8012]
[1732255031355,0.27516725,3376.0,3375.6,0.7716]
[1732255031549,0.27516725,3375.9,3375.6,0.7716]
[1732255031857,0.27516725,3375.8,3375.6,0.7716]
[1732255032083,0.27516725,3375.7,3375.6,0.7716]
[1732255032268,0.27516725,3376.4,3375.6,0.7716]
[1732255032470,0.27516725,3376.3,3375.6,0.7716]
[1732255032671,0.27516725,3376.2,3375.6,0.7716]
[1732255032865,0.16664004,3376.6,3375.6,0.7716]
[1732255033068,0.27486258,3376.5,3375.6,0.7716]
[1732255033259,0.27486258,3376.4,3375.6,0.7716]
[1732255033484,0.27486258,3376.3,3375.6,0.7716]
[1732255033687,0.27486258,3376.2,3375.6,0.7716]
[1732255034011,0.27486258,3376.1,3375.6,0.7716]
[1732255034155,0.27486258,3376.0,3375.6,0.7716]
[1732255034358,0.27486258,3375.9,3375.4,0.1497047]
[1732255034998,0.27486258,3375.8,3375.4,0.1497047]
[1732255035211,0.27486258,3376.2,3375.4,0.1497047]
[1732255035399,0.27486258,3376.1,3375.4,0.1497047]
[1732255039509,0.27486258,3376.1,3375.5,0.2951]
[1732255039859,0.27456038,3376.0,3375.5,0.2951]
[1732255040059,0.27456038,3375.9,3375.5,0.2951]
[1732255040255,0.27456038,3376.1,3375.5,0.2951]
[1732255040490,0.27456038,3376.0,3375.5,0.2951]
[1732255040690,0.27456038,3376.1,3375.5,0.2951]
[1732255040890,0.27456038,3376.0,3375.5,0.2951]
[1732255041096,0.27456038,3376.1,3375.5,0.2951]
[1732255041273,0.27456038,3376.0,3375.5,0.2951]
[1732255041499,0.27456038,3375.9,3375.5,0.2951]
[1732255041702,0.27456038,3375.8,3375.5,0.2951]
[1732255041908,0.27456038,3375.7,3375.5,0.2951]
[1732255042098,0.14974767,3376.2,3375.5,0.2951]
[1732255042301,0.27448395,3376.1,3375.5,0.2951]
[1732255043595,0.27445689,3376.0,3375.5,0.2951]